[Event "Live Chess"]
[Site "Chess.com"]
[Date "2023.05.21"]
[Round "-"]
[White "NAZRIZ1977"]
[Black "alanmike75"]
[Result "1-0"]
[WhiteElo "2001"]
[BlackElo "1551"]
[TimeControl "300"]
[EndTime "17:21:31 PDT"]
[Termination "NAZRIZ1977 won on time"]

1. d4 {[%clk 0:04:56]} 1... d5 {[%clk 0:04:58.5]} 2. Nc3 {[%clk 0:04:54.5]} 2...
c6 {[%clk 0:04:56.7]} 3. Bf4 {[%clk 0:04:53.3]} 3... e6 {[%clk 0:04:55.1]} 4. e3
{[%clk 0:04:52.3]} 4... Bd6 {[%clk 0:04:53.8]} 5. Nf3 {[%clk 0:04:51.2]} 5...
Nf6 {[%clk 0:04:52.2]} 6. Bd3 {[%clk 0:04:49.7]} 6... O-O {[%clk 0:04:50.6]} 7.
Qe2 {[%clk 0:04:46.3]} 7... Bxf4 {[%clk 0:04:44.4]} 8. exf4 {[%clk 0:04:45.3]}
8... Nbd7 {[%clk 0:04:41.5]} 9. O-O-O {[%clk 0:04:44.5]} 9... c5 {[%clk
0:04:40.4]} 10. Rdg1 {[%clk 0:04:44]} 10... c4 {[%clk 0:04:35.6]} 11. Bxh7+
{[%clk 0:04:43.2]} 11... Nxh7 {[%clk 0:04:32.9]} 12. g4 {[%clk 0:04:43.1]} 12...
Ndf6 {[%clk 0:04:27.8]} 13. h4 {[%clk 0:04:38.7]} 13... Qd6 {[%clk 0:04:11.9]}
14. Ne5 {[%clk 0:04:37]} 14... Ne4 {[%clk 0:04:04.9]} 15. Nxe4 {[%clk
0:04:28.9]} 15... dxe4 {[%clk 0:04:03.6]} 16. Qxe4 {[%clk 0:04:28]} 16... f6
{[%clk 0:03:58.7]} 17. Ng6 {[%clk 0:04:21.8]} 17... Re8 {[%clk 0:03:57.2]} 18.
g5 {[%clk 0:04:17.6]} 18... f5 {[%clk 0:03:53]} 19. Qe3 {[%clk 0:04:13.2]} 19...
b6 {[%clk 0:03:49.8]} 20. h5 {[%clk 0:04:08.7]} 20... Bb7 {[%clk 0:03:47.6]} 21.
f3 {[%clk 0:04:07.3]} 21... Qd5 {[%clk 0:03:44.4]} 22. Ne5 {[%clk 0:04:03.5]}
22... Rad8 {[%clk 0:03:40.1]} 23. c3 {[%clk 0:04:02]} 23... b5 {[%clk
0:03:31.7]} 24. h6 {[%clk 0:03:55.4]} 24... g6 {[%clk 0:03:28.4]} 25. Rh3 {[%clk
0:03:47.8]} 25... b4 {[%clk 0:03:20]} 26. Nxg6 {[%clk 0:03:45.5]} 26... bxc3
{[%clk 0:03:18.7]} 27. bxc3 {[%clk 0:03:44.7]} 27... Qa5 {[%clk 0:03:09.9]} 28.
Rh2 {[%clk 0:03:35.9]} 28... Qa3+ {[%clk 0:03:01.1]} 29. Kb1 {[%clk 0:03:34.3]}
29... Bd5 {[%clk 0:02:56.3]} 30. Ne5 {[%clk 0:03:29.1]} 30... Rb8+ {[%clk
0:02:54.5]} 31. Ka1 {[%clk 0:03:27.9]} 31... Rb6 {[%clk 0:02:43.4]} 32. g6
{[%clk 0:03:21.8]} 32... Nf6 {[%clk 0:02:36.5]} 33. h7+ {[%clk 0:03:12.7]} 33...
Kg7 {[%clk 0:02:33.6]} 34. Nf7 {[%clk 0:03:09]} 34... Rb3 {[%clk 0:01:49.9]} 35.
h8=Q+ {[%clk 0:02:31]} 35... Rxh8 {[%clk 0:01:47.9]} 36. Nxh8 {[%clk 0:02:29.2]}
36... Rxc3 {[%clk 0:01:44.8]} 37. Qd2 {[%clk 0:02:12.7]} 37... Bxf3 {[%clk
0:01:26.3]} 38. Qb2 {[%clk 0:02:05.7]} 38... Bg4 {[%clk 0:00:52.1]} 39. Qxa3
{[%clk 0:01:53.6]} 39... Rxa3 {[%clk 0:00:49.6]} 40. Nf7 {[%clk 0:01:52]} 40...
Kxg6 {[%clk 0:00:44.3]} 41. Ne5+ {[%clk 0:01:48.9]} 41... Kg7 {[%clk 0:00:43.1]}
42. Nxc4 {[%clk 0:01:48]} 42... Rd3 {[%clk 0:00:39.5]} 43. Ne5 {[%clk
0:01:42.8]} 43... Rxd4 {[%clk 0:00:36.5]} 44. Kb2 {[%clk 0:01:27.6]} 44... Rxf4
{[%clk 0:00:34]} 45. Rb1 {[%clk 0:01:22.7]} 45... Rb4+ {[%clk 0:00:27.7]} 46.
Kc2 {[%clk 0:01:19.2]} 46... Rxb1 {[%clk 0:00:25.1]} 47. Kxb1 {[%clk 0:01:19.1]}
47... Ne4 {[%clk 0:00:19.6]} 48. Rc2 {[%clk 0:01:10.4]} 48... Kf6 {[%clk
0:00:18]} 49. Nd3 {[%clk 0:01:06]} 49... Kg5 {[%clk 0:00:09.3]} 50. Rc7 {[%clk
0:00:59.4]} 50... f4 {[%clk 0:00:05.3]} 51. Rxa7 {[%clk 0:00:53]} 51... f3
{[%clk 0:00:04.1]} 52. Rg7+ {[%clk 0:00:52.3]} 52... Kf5 {[%clk 0:00:02.2]} 53.
Rf7+ {[%clk 0:00:46.8]} 1-0

[Event "Live Chess"]
[Site "Chess.com"]
[Date "2023.05.21"]
[Round "-"]
[White "LL220284LL"]
[Black "Doge_Dandolo"]
[Result "1-0"]
[WhiteElo "2324"]
[BlackElo "1964"]
[TimeControl "300"]
[EndTime "17:21:31 PDT"]
[Termination "LL220284LL won by resignation"]

1. b3 {[%clk 0:04:56.7]} 1... Nf6 {[%clk 0:04:58]} 2. Bb2 {[%clk 0:04:55.9]}
2... g6 {[%clk 0:04:56.7]} 3. Nf3 {[%clk 0:04:55.2]} 3... Bg7 {[%clk 0:04:55.8]}
4. e3 {[%clk 0:04:54.7]} 4... O-O {[%clk 0:04:55.2]} 5. Be2 {[%clk 0:04:54.1]}
5... c5 {[%clk 0:04:54.5]} 6. O-O {[%clk 0:04:53.3]} 6... b6 {[%clk 0:04:54]} 7.
d4 {[%clk 0:04:52.7]} 7... Bb7 {[%clk 0:04:51.8]} 8. Nbd2 {[%clk 0:04:52.1]}
8... d6 {[%clk 0:04:50.8]} 9. c4 {[%clk 0:04:51]} 9... Nbd7 {[%clk 0:04:49.5]}
10. Re1 {[%clk 0:04:50.1]} 10... e6 {[%clk 0:04:48]} 11. Rc1 {[%clk 0:04:49]}
11... Rc8 {[%clk 0:04:45.1]} 12. Qc2 {[%clk 0:04:47.9]} 12... Rc7 {[%clk
0:04:43.3]} 13. Qb1 {[%clk 0:04:46.9]} 13... Qa8 {[%clk 0:04:42.3]} 14. Qa1
{[%clk 0:04:45.4]} 14... Rfc8 {[%clk 0:04:38.8]} 15. Nf1 {[%clk 0:04:40.4]}
15... a6 {[%clk 0:04:33.2]} 16. Ng3 {[%clk 0:04:36.8]} 16... b5 {[%clk
0:04:30.9]} 17. dxc5 {[%clk 0:04:34.4]} 17... Rxc5 {[%clk 0:04:28.9]} 18. Bd4
{[%clk 0:04:27]} 18... R5c7 {[%clk 0:04:26.8]} 19. cxb5 {[%clk 0:04:25.9]} 19...
axb5 {[%clk 0:04:24.1]} 20. Bxb5 {[%clk 0:04:18.6]} 20... Bxf3 {[%clk
0:04:16.3]} 21. Rxc7 {[%clk 0:04:12.8]} 21... Rxc7 {[%clk 0:04:14.5]} 22. gxf3
{[%clk 0:04:11.6]} 22... e5 {[%clk 0:04:06.8]} 23. Bb2 {[%clk 0:04:08]} 23...
Qxf3 {[%clk 0:04:04.2]} 24. Be2 {[%clk 0:04:02.1]} 24... Qb7 {[%clk 0:03:59.5]}
25. Rc1 {[%clk 0:03:59.9]} 25... h5 {[%clk 0:03:57.4]} 26. Rxc7 {[%clk
0:03:56.5]} 26... Qxc7 {[%clk 0:03:55.8]} 27. Qc1 {[%clk 0:03:56.1]} 27... Qb7
{[%clk 0:03:49.6]} 28. Bf1 {[%clk 0:03:41.9]} 28... Ng4 {[%clk 0:03:44.3]} 29.
Bg2 {[%clk 0:03:39]} 29... Qb8 {[%clk 0:03:38.9]} 30. Qd1 {[%clk 0:03:28.8]}
30... Nc5 {[%clk 0:03:29.1]} 31. Ne4 {[%clk 0:03:21.3]} 31... Nxe4 {[%clk
0:03:19.2]} 32. Bxe4 {[%clk 0:03:21.2]} 32... Qc7 {[%clk 0:03:17.9]} 33. Qc2
{[%clk 0:03:17]} 33... Qe7 {[%clk 0:03:12.5]} 34. Bg2 {[%clk 0:03:09.8]} 34...
Qh4 {[%clk 0:03:08.9]} 35. h3 {[%clk 0:03:08]} 35... Nh6 {[%clk 0:03:00.9]} 36.
a4 {[%clk 0:03:06.7]} 36... Qb4 {[%clk 0:02:57.2]} 37. Qc4 {[%clk 0:03:02.6]}
37... Qb6 {[%clk 0:02:53.3]} 38. Bc3 {[%clk 0:03:00.3]} 38... Nf5 {[%clk
0:02:50.4]} 39. a5 {[%clk 0:02:59.1]} 39... Qb8 {[%clk 0:02:48.1]} 40. a6 {[%clk
0:02:58.1]} 40... Nh4 {[%clk 0:02:45.4]} 41. Qb4 {[%clk 0:02:51]} 41... Qc8
{[%clk 0:02:37.8]} 42. Qb7 {[%clk 0:02:40.2]} 42... Qf5 {[%clk 0:02:34.5]} 43.
a7 {[%clk 0:02:36.4]} 43... Qb1+ {[%clk 0:02:30.9]} 44. Kh2 {[%clk 0:02:32.9]}
44... e4 {[%clk 0:02:30.3]} 45. a8=Q+ {[%clk 0:02:31.7]} 1-0

[Event "Live Chess"]
[Site "Chess.com"]
[Date "2023.05.21"]
[Round "-"]
[White "Jo1ts"]
[Black "LiamBellwood"]
[Result "0-1"]
[WhiteElo "801"]
[BlackElo "2058"]
[TimeControl "300"]
[EndTime "17:21:46 PDT"]
[Termination "LiamBellwood won by checkmate"]

1. d4 {[%clk 0:04:57.5]} 1... e6 {[%clk 0:04:59.9]} 2. Nf3 {[%clk 0:04:52.2]}
2... f5 {[%clk 0:04:59.2]} 3. Bg5 {[%clk 0:04:48.4]} 3... Be7 {[%clk 0:04:57.9]}
4. e3 {[%clk 0:04:43.4]} 4... Bxg5 {[%clk 0:04:56.5]} 5. Ne5 {[%clk 0:04:34.2]}
5... Nf6 {[%clk 0:04:54.7]} 6. h4 {[%clk 0:04:29.3]} 6... Bh6 {[%clk 0:04:53.7]}
7. g4 {[%clk 0:04:19.3]} 7... fxg4 {[%clk 0:04:46]} 8. Nxg4 {[%clk 0:04:14.4]}
8... Nxg4 {[%clk 0:04:43.6]} 9. Qxg4 {[%clk 0:04:13.7]} 9... O-O {[%clk
0:04:43.5]} 10. Bd3 {[%clk 0:04:07.3]} 10... Qf6 {[%clk 0:04:38]} 11. Nd2 {[%clk
0:03:59.5]} 11... Qxf2+ {[%clk 0:04:33.9]} 12. Kd1 {[%clk 0:03:58.5]} 12... Qxe3
{[%clk 0:04:24.4]} 13. Re1 {[%clk 0:03:54.2]} 13... Qxd2# {[%clk 0:04:23.3]} 0-1

[Event "Live Chess"]
[Site "Chess.com"]
[Date "2023.05.21"]
[Round "-"]
[White "Conradical12"]
[Black "Baturin_Yevgeniy"]
[Result "1-0"]
[WhiteElo "1616"]
[BlackElo "1800"]
[TimeControl "300"]
[EndTime "17:21:54 PDT"]
[Termination "Conradical12 won on time"]

1. e4 {[%clk 0:04:57]} 1... e6 {[%clk 0:04:57.9]} 2. d4 {[%clk 0:04:54]} 2... d5
{[%clk 0:04:56.9]} 3. exd5 {[%clk 0:04:53]} 3... exd5 {[%clk 0:04:56.6]} 4. Nf3
{[%clk 0:04:52.4]} 4... Nf6 {[%clk 0:04:53.4]} 5. c4 {[%clk 0:04:51.5]} 5... c6
{[%clk 0:04:51.8]} 6. Nc3 {[%clk 0:04:49.6]} 6... Be7 {[%clk 0:04:11.9]} 7. Bd3
{[%clk 0:04:44.7]} 7... O-O {[%clk 0:04:10.1]} 8. O-O {[%clk 0:04:43]} 8... Bg4
{[%clk 0:04:07.3]} 9. Re1 {[%clk 0:04:41.7]} 9... Bxf3 {[%clk 0:03:54.3]} 10.
Qxf3 {[%clk 0:04:40.1]} 10... dxc4 {[%clk 0:03:52.1]} 11. Bxc4 {[%clk
0:04:38.7]} 11... Qxd4 {[%clk 0:03:36.2]} 12. Bb3 {[%clk 0:04:36.2]} 12... Bc5
{[%clk 0:03:24.2]} 13. Be3 {[%clk 0:04:34.2]} 13... Qb4 {[%clk 0:03:18.1]} 14.
Rad1 {[%clk 0:04:30.3]} 14... Nbd7 {[%clk 0:03:00]} 15. Bxc5 {[%clk 0:04:18]}
15... Nxc5 {[%clk 0:02:08.5]} 16. Bc2 {[%clk 0:04:12.8]} 16... Qxb2 {[%clk
0:02:02.6]} 17. Rd2 {[%clk 0:04:08.8]} 17... Qa3 {[%clk 0:01:38.1]} 18. Rdd1
{[%clk 0:03:34.2]} 18... Rfd8 {[%clk 0:01:18.8]} 19. Rb1 {[%clk 0:03:30.7]}
19... h6 {[%clk 0:01:01.3]} 20. Re3 {[%clk 0:03:22.4]} 20... Qa6 {[%clk
0:00:57.2]} 21. Qf5 {[%clk 0:02:46.4]} 21... Ne6 {[%clk 0:00:47.7]} 22. Ne4
{[%clk 0:02:38.1]} 22... Nxe4 {[%clk 0:00:43.7]} 23. Qxe4 {[%clk 0:02:36.8]}
23... Ng5 {[%clk 0:00:41.3]} 24. Qf3 {[%clk 0:02:31.6]} 24... Nxf3+ {[%clk
0:00:38.9]} 25. Rxf3 {[%clk 0:02:30.1]} 25... Rd2 {[%clk 0:00:36.6]} 26. Bb3
{[%clk 0:02:27.8]} 26... Rf8 {[%clk 0:00:32.6]} 27. Re1 {[%clk 0:02:18.6]} 27...
Qa3 {[%clk 0:00:30]} 28. Bxf7+ {[%clk 0:02:15.4]} 28... Rxf7 {[%clk 0:00:25.2]}
29. Rxa3 {[%clk 0:02:14.1]} 29... Rfxf2 {[%clk 0:00:22.5]} 30. Rg3 {[%clk
0:02:12.7]} 30... Rxa2 {[%clk 0:00:20.5]} 31. h3 {[%clk 0:02:10.9]} 31... Kf8
{[%clk 0:00:18.1]} 32. Kh2 {[%clk 0:02:05.8]} 32... Rae2 {[%clk 0:00:17.3]} 33.
Rd1 {[%clk 0:02:03.9]} 33... Rd2 {[%clk 0:00:16.2]} 34. Rb1 {[%clk 0:02:02.4]}
34... Rb2 {[%clk 0:00:15.4]} 35. Rd1 {[%clk 0:01:59.4]} 35... Rbd2 {[%clk
0:00:14.3]} 36. Rd3 {[%clk 0:01:55.3]} 36... Rxd1 {[%clk 0:00:12.9]} 37. Rxd1
{[%clk 0:01:54.3]} 37... Ke7 {[%clk 0:00:11.6]} 38. Kg3 {[%clk 0:01:51.3]} 38...
Rf6 {[%clk 0:00:08.4]} 39. Re1+ {[%clk 0:01:50]} 39... Re6 {[%clk 0:00:08.3]}
40. Rb1 {[%clk 0:01:48.2]} 40... b6 {[%clk 0:00:06.4]} 41. Rc1 {[%clk
0:01:47.1]} 41... c5 {[%clk 0:00:05.4]} 42. Ra1 {[%clk 0:01:45.9]} 42... Kd7
{[%clk 0:00:05.3]} 43. Rxa7+ {[%clk 0:01:44.6]} 43... Kc6 {[%clk 0:00:05.2]} 44.
Rxg7 {[%clk 0:01:44.1]} 44... c4 {[%clk 0:00:05.1]} 45. Rg8 {[%clk 0:01:42.4]}
45... Kc5 {[%clk 0:00:05]} 46. Rh8 {[%clk 0:01:40.5]} 46... Kb4 {[%clk
0:00:04.9]} 47. Rc8 {[%clk 0:01:37.7]} 47... b5 {[%clk 0:00:04.8]} 48. Kg4
{[%clk 0:01:35.5]} 48... c3 {[%clk 0:00:04.7]} 49. Kf5 {[%clk 0:01:34.4]} 49...
Rd6 {[%clk 0:00:04.6]} 50. Ke5 {[%clk 0:01:33.4]} 50... Kb3 {[%clk 0:00:04.5]}
51. Kxd6 {[%clk 0:01:31.2]} 51... b4 {[%clk 0:00:04.4]} 52. Kd5 {[%clk 0:01:30]}
52... Kb2 {[%clk 0:00:02.6]} 53. Kc4 {[%clk 0:01:23.2]} 53... b3 {[%clk
0:00:02.5]} 54. Kd3 {[%clk 0:01:21.9]} 54... c2 {[%clk 0:00:02.4]} 55. Kd2
{[%clk 0:01:20.3]} 55... c1=Q+ {[%clk 0:00:02.3]} 56. Rxc1 {[%clk 0:01:18.4]}
56... Ka2 {[%clk 0:00:00.6]} 57. Rh1 {[%clk 0:01:14.5]} 57... b2 {[%clk
0:00:00.5]} 58. Ke3 {[%clk 0:01:13.3]} 58... b1=Q {[%clk 0:00:00.4]} 59. Rxb1
{[%clk 0:01:12.2]} 59... Kxb1 {[%clk 0:00:00.3]} 60. g3 {[%clk 0:01:11.1]} 60...
Kb2 {[%clk 0:00:00.2]} 61. g4 {[%clk 0:01:10.7]} 61... Kb3 {[%clk 0:00:00.1]}
62. h4 {[%clk 0:01:10.2]} 1-0

[Event "Live Chess"]
[Site "Chess.com"]
[Date "2023.05.21"]
[Round "-"]
[White "wot-not"]
[Black "chessfiction"]
[Result "0-1"]
[WhiteElo "1544"]
[BlackElo "2337"]
[TimeControl "300"]
[EndTime "17:21:59 PDT"]
[Termination "chessfiction won by checkmate"]

1. d4 {[%clk 0:04:57.5]} 1... d5 {[%clk 0:04:58.9]} 2. c4 {[%clk 0:04:56.3]}
2... e5 {[%clk 0:04:55.5]} 3. dxe5 {[%clk 0:04:52.3]} 3... d4 {[%clk 0:04:53]}
4. Nf3 {[%clk 0:04:47.6]} 4... Nc6 {[%clk 0:04:51.1]} 5. a3 {[%clk 0:04:46.9]}
5... Bg4 {[%clk 0:04:49.2]} 6. Nbd2 {[%clk 0:04:42.8]} 6... f6 {[%clk
0:04:39.6]} 7. exf6 {[%clk 0:04:32.3]} 7... Nxf6 {[%clk 0:04:39.5]} 8. Nb3
{[%clk 0:04:30.8]} 8... Bd6 {[%clk 0:04:36.4]} 9. Bg5 {[%clk 0:04:29.3]} 9...
O-O {[%clk 0:04:34.6]} 10. Bxf6 {[%clk 0:04:28.8]} 10... Qxf6 {[%clk 0:04:32.4]}
11. Nbxd4 {[%clk 0:04:12.3]} 11... Bxf3 {[%clk 0:04:25.6]} 12. Nxf3 {[%clk
0:03:58]} 12... Qxb2 {[%clk 0:04:23.9]} 13. e3 {[%clk 0:03:50.5]} 13... Bxa3
{[%clk 0:04:19.9]} 14. Be2 {[%clk 0:03:37.7]} 14... Rad8 {[%clk 0:04:14.4]} 15.
Qb1 {[%clk 0:03:08]} 15... Bb4+ {[%clk 0:04:11.5]} 16. Kf1 {[%clk 0:03:07.1]}
16... Qf6 {[%clk 0:04:07.4]} 17. g3 {[%clk 0:02:54.4]} 17... Rd2 {[%clk
0:04:03.2]} 18. Ra2 {[%clk 0:02:28]} 18... Rxe2 {[%clk 0:03:58.9]} 19. Rxe2
{[%clk 0:02:26.4]} 19... Qxf3 {[%clk 0:03:58]} 20. Rg1 {[%clk 0:02:18.9]} 20...
Ne5 {[%clk 0:03:55.8]} 21. Qxb4 {[%clk 0:02:02.6]} 21... Ng4 {[%clk 0:03:49.1]}
22. Qb2 {[%clk 0:01:39.1]} 22... Nxe3+ {[%clk 0:03:41]} 23. Rxe3 {[%clk
0:01:36.2]} 23... Qxe3 {[%clk 0:03:37.9]} 24. Qxb7 {[%clk 0:01:16]} 24... Qxf2#
{[%clk 0:03:36.3]} 0-1

[Event "Live Chess"]
[Site "Chess.com"]
[Date "2023.05.21"]
[Round "-"]
[White "KeithArkell"]
[Black "SupremeTactician"]
[Result "1-0"]
[WhiteElo "2611"]
[BlackElo "2342"]
[TimeControl "300"]
[EndTime "17:22:20 PDT"]
[Termination "KeithArkell won by resignation"]

1. d4 {[%clk 0:04:58.2]} 1... Nf6 {[%clk 0:04:57.1]} 2. Nf3 {[%clk 0:04:57.5]}
2... e6 {[%clk 0:04:55.2]} 3. c4 {[%clk 0:04:56.6]} 3... d5 {[%clk 0:04:52.8]}
4. cxd5 {[%clk 0:04:55.5]} 4... exd5 {[%clk 0:04:52.3]} 5. Nc3 {[%clk
0:04:54.9]} 5... Bf5 {[%clk 0:04:50.3]} 6. Bg5 {[%clk 0:04:53]} 6... c6 {[%clk
0:04:48.7]} 7. e3 {[%clk 0:04:52.4]} 7... Bd6 {[%clk 0:04:43.5]} 8. Bd3 {[%clk
0:04:50.5]} 8... Bg6 {[%clk 0:04:42]} 9. O-O {[%clk 0:04:47.9]} 9... Nbd7 {[%clk
0:04:40.6]} 10. Rb1 {[%clk 0:04:46.1]} 10... h6 {[%clk 0:04:38.1]} 11. Bxf6
{[%clk 0:04:44]} 11... Qxf6 {[%clk 0:04:38]} 12. b4 {[%clk 0:04:41.8]} 12... Bh5
{[%clk 0:04:35.8]} 13. Be2 {[%clk 0:04:40.6]} 13... g5 {[%clk 0:04:05]} 14. b5
{[%clk 0:04:37.8]} 14... Bxf3 {[%clk 0:04:03.4]} 15. Bxf3 {[%clk 0:04:35.7]}
15... h5 {[%clk 0:04:02.4]} 16. bxc6 {[%clk 0:04:31.6]} 16... bxc6 {[%clk
0:04:01.3]} 17. g3 {[%clk 0:04:22.8]} 17... g4 {[%clk 0:03:54.7]} 18. Bg2 {[%clk
0:04:22]} 18... Qg5 {[%clk 0:02:47.4]} 19. Qa4 {[%clk 0:04:18.1]} 19... Rc8
{[%clk 0:02:44.6]} 20. Rb7 {[%clk 0:04:15.5]} 20... Nf6 {[%clk 0:02:38.8]} 21.
e4 {[%clk 0:03:54.4]} 21... dxe4 {[%clk 0:02:33.5]} 22. Nxe4 {[%clk 0:03:53.4]}
22... Nxe4 {[%clk 0:02:32.4]} 23. Bxe4 {[%clk 0:03:53.3]} 23... O-O {[%clk
0:02:18.1]} 24. Bxc6 {[%clk 0:03:28.2]} 24... h4 {[%clk 0:02:15.8]} 25. Bd7
{[%clk 0:03:11.8]} 25... Rc1 {[%clk 0:01:56.2]} 26. Rb1 {[%clk 0:02:59.7]} 26...
Rxf1+ {[%clk 0:01:49.4]} 27. Rxf1 {[%clk 0:02:54.2]} 27... hxg3 {[%clk
0:01:48.5]} 28. hxg3 {[%clk 0:02:52.8]} 28... Kg7 {[%clk 0:01:39.1]} 29. d5
{[%clk 0:02:37.4]} 29... f5 {[%clk 0:01:38.2]} 30. Qd4+ {[%clk 0:02:35]} 30...
Rf6 {[%clk 0:01:19.9]} 31. Re1 {[%clk 0:02:23.1]} 31... f4 {[%clk 0:01:09.9]}
32. Re4 {[%clk 0:02:09.6]} 32... Qh6 {[%clk 0:00:47.3]} 33. gxf4 {[%clk
0:01:24.9]} 33... Bxf4 {[%clk 0:00:41.7]} 34. Bxg4 {[%clk 0:01:11.3]} 34... Qh2+
{[%clk 0:00:35.8]} 35. Kf1 {[%clk 0:01:10.4]} 35... Bg3 {[%clk 0:00:20.6]} 36.
Bf3 {[%clk 0:00:49.9]} 36... Qh3+ {[%clk 0:00:14.1]} 37. Ke2 {[%clk 0:00:47.5]}
37... Bd6 {[%clk 0:00:10.3]} 38. Bg4 {[%clk 0:00:34.9]} 38... Qa3 {[%clk
0:00:09.5]} 39. Re6 {[%clk 0:00:23.1]} 39... Qb2+ {[%clk 0:00:08.8]} 40. Qxb2
{[%clk 0:00:20.5]} 1-0

[Event "Live Chess"]
[Site "Chess.com"]
[Date "2023.05.21"]
[Round "-"]
[White "luckywookie"]
[Black "GMHarry-youtube"]
[Result "0-1"]
[WhiteElo "766"]
[BlackElo "2035"]
[TimeControl "300"]
[EndTime "17:22:46 PDT"]
[Termination "GMHarry-youtube won by checkmate"]

1. e4 {[%clk 0:04:55.4]} 1... c5 {[%clk 0:04:56.8]} 2. c3 {[%clk 0:04:53]} 2...
d5 {[%clk 0:04:54.5]} 3. exd5 {[%clk 0:04:51.5]} 3... Qxd5 {[%clk 0:04:54.4]} 4.
d4 {[%clk 0:04:50.5]} 4... g6 {[%clk 0:04:52.1]} 5. Nf3 {[%clk 0:04:49.5]} 5...
Bg7 {[%clk 0:04:50.7]} 6. Na3 {[%clk 0:04:39]} 6... Nc6 {[%clk 0:04:48.4]} 7.
Nb5 {[%clk 0:04:32.3]} 7... Qd8 {[%clk 0:04:42.7]} 8. Bc4 {[%clk 0:04:22.8]}
8... a6 {[%clk 0:04:38.2]} 9. Na3 {[%clk 0:04:16.9]} 9... b5 {[%clk 0:04:37.1]}
10. Bd5 {[%clk 0:04:14.6]} 10... Qxd5 {[%clk 0:04:34.7]} 11. O-O {[%clk
0:04:07.6]} 11... Bg4 {[%clk 0:04:32.6]} 12. Re1 {[%clk 0:04:04.2]} 12... cxd4
{[%clk 0:04:30]} 13. Nc2 {[%clk 0:03:56.2]} 13... Bxf3 {[%clk 0:04:24.3]} 14.
gxf3 {[%clk 0:03:54.5]} 14... d3 {[%clk 0:04:22.2]} 15. Ne3 {[%clk 0:03:51.3]}
15... Qg5+ {[%clk 0:04:20.9]} 16. Ng4 {[%clk 0:03:48.5]} 16... Qf5 {[%clk
0:04:19.3]} 17. Be3 {[%clk 0:03:40.8]} 17... h5 {[%clk 0:04:16.4]} 18. Qd2
{[%clk 0:03:24.8]} 18... hxg4 {[%clk 0:04:14.5]} 19. fxg4 {[%clk 0:03:21.6]}
19... Qxg4+ {[%clk 0:04:13.2]} 20. Kf1 {[%clk 0:03:21.2]} 20... Rxh2 {[%clk
0:04:11.5]} 21. f3 {[%clk 0:03:14.4]} 21... Rh1+ {[%clk 0:04:01.9]} 22. Kf2
{[%clk 0:03:06]} 22... Qh4+ {[%clk 0:04:00.3]} 23. Kg2 {[%clk 0:03:00.1]} 23...
Qh2# {[%clk 0:04:00.2]} 0-1

[Event "Live Chess"]
[Site "Chess.com"]
[Date "2023.05.21"]
[Round "-"]
[White "Balu13"]
[Black "gmnorfolk"]
[Result "0-1"]
[WhiteElo "853"]
[BlackElo "2118"]
[TimeControl "300"]
[EndTime "17:22:57 PDT"]
[Termination "gmnorfolk won by resignation"]

1. e4 {[%clk 0:04:54.3]} 1... c5 {[%clk 0:04:57.9]} 2. f4 {[%clk 0:04:50.8]}
2... g6 {[%clk 0:04:56.2]} 3. Nc3 {[%clk 0:04:38.5]} 3... Bg7 {[%clk 0:04:54.2]}
4. e5 {[%clk 0:04:35.3]} 4... d6 {[%clk 0:04:53.1]} 5. Nf3 {[%clk 0:04:23.9]}
5... Nc6 {[%clk 0:04:51.9]} 6. Bc4 {[%clk 0:04:18.4]} 6... dxe5 {[%clk
0:04:49.9]} 7. O-O {[%clk 0:04:10.1]} 7... e6 {[%clk 0:04:46.7]} 8. Ng5 {[%clk
0:04:07.7]} 8... Qd4+ {[%clk 0:04:44.1]} 9. Kh1 {[%clk 0:03:59.1]} 9... Qxc4
{[%clk 0:04:43.3]} 10. fxe5 {[%clk 0:03:55.9]} 10... Nxe5 {[%clk 0:04:32.4]} 11.
Nxf7 {[%clk 0:03:52.1]} 11... Nxf7 {[%clk 0:04:29.6]} 12. Qf3 {[%clk 0:03:51.4]}
12... Nf6 {[%clk 0:04:25.3]} 13. d3 {[%clk 0:03:49]} 13... Qg4 {[%clk
0:04:21.3]} 14. Qxg4 {[%clk 0:03:29.4]} 14... Nxg4 {[%clk 0:04:19.5]} 15. h3
{[%clk 0:03:08.3]} 15... Nf6 {[%clk 0:03:30.8]} 16. Bh6 {[%clk 0:02:29.4]} 16...
Nxh6 {[%clk 0:03:27.1]} 0-1

[Event "Live Chess"]
[Site "Chess.com"]
[Date "2023.05.21"]
[Round "-"]
[White "nigelst"]
[Black "LanceMaster23"]
[Result "0-1"]
[WhiteElo "1799"]
[BlackElo "1890"]
[TimeControl "300"]
[EndTime "17:23:02 PDT"]
[Termination "LanceMaster23 won on time"]

1. e4 {[%clk 0:04:57.5]} 1... c5 {[%clk 0:04:58.8]} 2. Nf3 {[%clk 0:04:55.3]}
2... Nc6 {[%clk 0:04:58.3]} 3. Bb5 {[%clk 0:04:52.8]} 3... Qc7 {[%clk
0:04:57.4]} 4. O-O {[%clk 0:04:49.6]} 4... d6 {[%clk 0:04:55.4]} 5. c3 {[%clk
0:04:48.3]} 5... a6 {[%clk 0:04:50.3]} 6. Ba4 {[%clk 0:04:44.8]} 6... Nf6 {[%clk
0:04:48]} 7. Re1 {[%clk 0:04:38.5]} 7... b5 {[%clk 0:04:44.1]} 8. Bc2 {[%clk
0:04:36]} 8... Bg4 {[%clk 0:04:43]} 9. h3 {[%clk 0:04:34.2]} 9... Bh5 {[%clk
0:04:42.5]} 10. g4 {[%clk 0:04:28.1]} 10... Bg6 {[%clk 0:04:41.7]} 11. d4 {[%clk
0:04:21.5]} 11... cxd4 {[%clk 0:04:38.4]} 12. cxd4 {[%clk 0:04:20.6]} 12... Nb4
{[%clk 0:04:25.1]} 13. Bd3 {[%clk 0:04:07.8]} 13... Bxe4 {[%clk 0:04:00.6]} 14.
Bxe4 {[%clk 0:04:02.7]} 14... Nxe4 {[%clk 0:04:00.5]} 15. Rxe4 {[%clk
0:03:53.6]} 15... Nc2 {[%clk 0:03:59.9]} 16. Nc3 {[%clk 0:03:52.1]} 16... Nxa1
{[%clk 0:03:58.5]} 17. Bf4 {[%clk 0:03:46.4]} 17... b4 {[%clk 0:03:06.8]} 18.
Nd5 {[%clk 0:03:44.4]} 18... Qa5 {[%clk 0:02:48.1]} 19. Nxe7 {[%clk 0:03:20.7]}
19... Bxe7 {[%clk 0:02:41.6]} 20. Qxa1 {[%clk 0:03:16.7]} 20... Ra7 {[%clk
0:02:21.9]} 21. Qe1 {[%clk 0:03:08.7]} 21... Qd8 {[%clk 0:02:00.1]} 22. d5
{[%clk 0:02:57.9]} 22... O-O {[%clk 0:01:56.1]} 23. Qe3 {[%clk 0:02:55.7]} 23...
Rb7 {[%clk 0:01:48.5]} 24. Nd4 {[%clk 0:02:52.1]} 24... Bf6 {[%clk 0:01:43.2]}
25. Nc6 {[%clk 0:02:38.7]} 25... Qb6 {[%clk 0:01:42.4]} 26. Qg3 {[%clk
0:02:22.7]} 26... Be5 {[%clk 0:00:58.4]} 27. Bxe5 {[%clk 0:02:08.9]} 27... dxe5
{[%clk 0:00:58.3]} 28. Qxe5 {[%clk 0:02:04.1]} 28... Qc5 {[%clk 0:00:48.5]} 29.
Ne7+ {[%clk 0:01:52.1]} 29... Kh8 {[%clk 0:00:47.5]} 30. Nf5 {[%clk 0:01:48.1]}
30... f6 {[%clk 0:00:46.7]} 31. Qe6 {[%clk 0:01:20.5]} 31... Qc8 {[%clk
0:00:21.9]} 32. Qxa6 {[%clk 0:00:37.6]} 32... Qc1+ {[%clk 0:00:20.2]} 33. Kg2
{[%clk 0:00:34.5]} 33... Rbb8 {[%clk 0:00:19.7]} 34. Qa7 {[%clk 0:00:23.2]}
34... Qg5 {[%clk 0:00:18.8]} 35. h4 {[%clk 0:00:19.1]} 35... Qg6 {[%clk
0:00:16.2]} 36. h5 {[%clk 0:00:09.2]} 36... Qf7 {[%clk 0:00:15.2]} 37. Re7
{[%clk 0:00:07.7]} 37... Qxd5+ {[%clk 0:00:12.6]} 38. Kh3 {[%clk 0:00:05.6]}
38... Qh1+ {[%clk 0:00:09.7]} 39. Kg3 {[%clk 0:00:04.6]} 39... Qg1+ {[%clk
0:00:06.7]} 40. Kf3 {[%clk 0:00:03.5]} 40... Qd1+ {[%clk 0:00:06.1]} 41. Kg2
{[%clk 0:00:02.1]} 41... Qxg4+ {[%clk 0:00:03.9]} 42. Kf1 {[%clk 0:00:01.2]}
42... Qxf5 {[%clk 0:00:02.6]} 0-1